[Event "Asian Amateur Rapid 2024"]
[Site "Al Ain"]
[Date "2024.12.15"]
[Round "3.8"]
[White "Hamad Shuaib Al Kaff"]
[Black "Farhaan, M."]
[Result "1-0"]
[ECO "B06"]
[WhiteElo "1710"]
[BlackElo "1695"]
[Annotator "NA RC"]
[PlyCount "151"]
[EventDate "2024.12.15"]
[EventType "swiss"]
[EventCountry "UAE"]
[SourceTitle "playchess.com"]
[Source "ChessBase"]
[SourceQuality "1"]
[TimeControl "900+10"]

1. e4 {[%emt 0:00:34]} d6 {[%emt 0:00:03]} 2. Nc3 {[%emt 0:00:07]} Nf6 {[%emt 0:00:01]} 3. g3 {[%emt 0:00:01]} g6 {[%emt 0:00:05]} 4. Bg2 {[%emt 0:00:00]} Bg7 {[%emt 0:00:04]} 5. d3 {[%emt 0:00:01]} e5 {[%emt 0:00:06]} 6. h3 {[%emt 0:00:03]} O-O {[%emt 0:00:02]} 7. Be3 {[%emt 0:00:00]} c6 {[%emt 0:00:09]} 8. Qd2 {[%emt 0:00:01]} d5 {[%emt 0:00:10]} 9. Bh6 {[%emt 0:00:33]} dxe4 {[%emt 0:00:04]} 10. Bxg7 {[%emt 0:00:08]} Kxg7 {[%emt 0:00:06]} 11. Nxe4 {[%emt 0:00:00]} Nxe4 {[%emt 0:00:12]} 12. Bxe4 {[%emt 0:00:02]} Nd7 {[%emt 0:01:09]} 13. Ne2 {[%emt 0:00:28]} Nc5 {[%emt 0:00:05]} 14. Bg2 {[%emt 0:00:02]} Qb6 {[%emt 0:00:25]} 15. Qc3 {[%emt 0:00:54]} f6 {[%emt 0:00:07]} 16. a4 {[%emt 0:00:03]} Ne6 {[%emt 0:00:08]} 17. O-O {[%emt 0:00:21]} Rd8 {[%emt 0:01:49]} 18. a5 {[%emt 0:00:10]} Qc5 {[%emt 0:00:02]} 19. Qxc5 {[%emt 0:00:56]} Nxc5 {[%emt 0:00:01]} 20. b4 {[%emt 0:00:02]} Ne6 {[%emt 0:00:13]} 21. a6 {[%emt 0:00:18]} bxa6 {[%emt 0:00:31]} 22. Bxc6 {[%emt 0:00:02]} Rb8 {[%emt 0:00:01]} 23. Ra4 {[%emt 0:01:00]} Nd4 {[%emt 0:00:07]} 24. Nxd4 {[%emt 0:01:17]} Rxd4 {[%emt 0:00:02]} 25. Rb1 {[%emt 0:00:05]} Bxh3 {[%emt 0:05:00]} 26. Rxa6 {[%emt 0:00:08]} Rdxb4 {[%emt 0:00:02]} 27. Rxa7+ {[%emt 0:00:03]} Kh6 {[%emt 0:00:02]} 28. Rxb4 {[%emt 0:01:32]} Rxb4 {[%emt 0:00:02]} 29. Bd5 {[%emt 0:01:07]} Rb2 {[%emt 0:00:24]} 30. Rc7 {[%emt 0:00:02]} Bf5 {[%emt 0:01:14]} 31. Kg2 {[%emt 0:00:40]} Kg5 {[%emt 0:00:25]} 32. Be4 {[%emt 0:00:50]} Be6 {[%emt 0:01:06]} 33. Rc5 {[%emt 0:02:38]} f5 {[%emt 0:00:41]} 34. Bc6 {[%emt 0:00:32]} Kf6 {[%emt 0:00:15]} 35. f4 {[%emt 0:00:08]} exf4 {[%emt 0:00:07]} 36. gxf4 {[%emt 0:00:01]} Bb3 {[%emt 0:00:04]} 37. Rc3 {[%emt 0:01:56]} Rxc2+ {[%emt 0:00:24]} 38. Rxc2 {[%emt 0:00:02]} Bxc2 {[%emt 0:00:01]} 39. Bb5 {[%emt 0:00:01]} h6 {[%emt 0:00:03]} 40. d4 {[%emt 0:00:31]} Be4+ {[%emt 0:00:09]} 41. Kg3 {[%emt 0:00:12]} g5 {[%emt 0:00:03]} 42. Bc4 {[%emt 0:00:59]} Ke7 {[%emt 0:00:03]} 43. Bb3 {[%emt 0:00:28]} Kd6 {[%emt 0:00:01]} 44. Bc4 {[%emt 0:00:07]} Bd5 {[%emt 0:00:02]} 45. Bd3 {[%emt 0:00:01]} Be6 {[%emt 0:00:00]} 46. Kf3 {[%emt 0:00:06]} Kd5 {[%emt 0:02:01]} 47. Ke3 {[%emt 0:00:10]} Bd7 {[%emt 0:00:01]} 48. Bb1 {[%emt 0:00:09]} Kc4 {[%emt 0:00:02]} 49. Ba2+ {[%emt 0:00:03]} Kc3 {[%emt 0:00:34]} 50. Bf7 {[%emt 0:01:51]} g4 {[%emt 0:00:12]} 51. d5 {[%emt 0:00:02]} Kc4 {[%emt 0:00:11]} 52. Be6 {[%emt 0:00:02]} h5 {[%emt 0:04:15]} 53. Bxd7 {[%emt 0:00:19]} Kxd5 {[%emt 0:00:01]} 54. Bxf5 {[%emt 0:00:05]} Kd6 {[%emt 0:00:27]} 55. Kf2 {[%emt 0:00:34]} Ke7 {[%emt 0:00:09]} 56. Kg3 {[%emt 0:00:06]} Kf6 {[%emt 0:00:05]} 57. Be4 {[%emt 0:00:03]} Kg7 {[%emt 0:00:12]} 58. Kh4 {[%emt 0:00:04]} Kh6 {[%emt 0:00:01]} 59. Bd3 {[%emt 0:00:23]} Kg7 {[%emt 0:00:11]} 60. Kxh5 {[%emt 0:00:03]} g3 {[%emt 0:00:01]} 61. Be4 {[%emt 0:00:01]} Kf6 {[%emt 0:00:02]} 62. Kg4 {[%emt 0:00:01]} g2 {[%emt 0:00:05]} 63. Bxg2 {[%emt 0:00:02]} Kg6 {[%emt 0:00:02]} 64. Be4+ {[%emt 0:00:02]} Kf6 {[%emt 0:00:01]} 65. f5 {[%emt 0:00:03]} Ke5 {[%emt 0:00:01]} 66. Kg5 {[%emt 0:00:01]} Kxe4 {[%emt 0:00:02]} 67. f6 {[%emt 0:00:01]} Kd3 {[%emt 0:00:01]} 68. f7 {[%emt 0:00:02]} Kc2 {[%emt 0:00:02]} 69. f8=Q {[%emt 0:00:02]} Kb1 {[%emt 0:00:02]} 70. Qc5 {[%emt 0:00:02]} Ka2 {[%emt 0:00:01]} 71. Qb6 {[%emt 0:00:00]} Ka3 {[%emt 0:00:01]} 72. Kf4 {[%emt 0:00:01]} Ka2 {[%emt 0:00:01]} 73. Ke3 {[%emt 0:00:01]} Ka3 {[%emt 0:00:01]} 74. Kd4 {[%emt 0:00:01]} Ka2 {[%emt 0:00:01]} 75. Kc3 {[%emt 0:00:01]} Ka3 {[%emt 0:00:00]} 76. Qb3# {[%emt 0:00:14]} 1-0

[Event "Asian Amateur Rapid 2024"]
[Site "Al Ain"]
[Date "2024.12.15"]
[Round "3.9"]
[White "Abdulrahim, Salem"]
[Black "Alviz, Joshua Ezekiel"]
[Result "1-0"]
[ECO "C08"]
[WhiteElo "1843"]
[BlackElo "1766"]
[Annotator "NA RC"]
[PlyCount "105"]
[EventDate "2024.12.15"]
[EventType "swiss"]
[EventCountry "UAE"]
[SourceTitle "playchess.com"]
[Source "ChessBase"]
[SourceQuality "1"]
[TimeControl "900+10"]

1. e4 {[%emt 0:00:02]} e6 {[%emt 0:00:04]} 2. d4 {[%emt 0:00:01]} d5 {[%emt 0:00:01]} 3. Nd2 {[%emt 0:00:02]} a6 {[%emt 0:00:01]} 4. Ngf3 {[%emt 0:00:06]} c5 {[%emt 0:00:02]} 5. exd5 {[%emt 0:00:04]} exd5 {[%emt 0:00:02]} 6. dxc5 {[%emt 0:00:12]} Bxc5 {[%emt 0:00:02]} 7. Nb3 {[%emt 0:00:04]} Bb6 {[%emt 0:00:13]} 8. Bd3 {[%emt 0:00:03]} Nf6 {[%emt 0:00:02]} 9. O-O {[%emt 0:00:08]} O-O {[%emt 0:00:02]} 10. h3 {[%emt 0:00:01]} Nc6 {[%emt 0:00:02]} 11. Bg5 {[%emt 0:00:06]} h6 {[%emt 0:00:21]} 12. Bh4 {[%emt 0:00:02]} Re8 {[%emt 0:01:04]} 13. Qd2 {[%emt 0:00:12]} Be6 {[%emt 0:00:45]} 14. Rad1 {[%emt 0:01:51]} Rc8 {[%emt 0:00:05]} 15. Rfe1 {[%emt 0:00:28]} Kh8 {[%emt 0:00:46]} 16. Ne5 {[%emt 0:01:12]} Nxe5 {[%emt 0:00:49]} 17. Rxe5 {[%emt 0:00:02]} Bc7 {[%emt 0:00:06]} 18. Re2 {[%emt 0:00:28]} Qd6 {[%emt 0:00:34]} 19. Bg3 {[%emt 0:00:02]} Qd8 {[%emt 0:00:29]} 20. Bxc7 {[%emt 0:00:23]} Rxc7 {[%emt 0:00:39]} 21. Rde1 {[%emt 0:00:07]} Rce7 {[%emt 0:00:45]} 22. Qf4 {[%emt 0:00:40]} Qb6 {[%emt 0:01:48]} 23. Qd4 {[%emt 0:00:39]} Qxd4 {[%emt 0:00:19]} 24. Nxd4 {[%emt 0:00:01]} Kg8 {[%emt 0:00:20]} 25. Bf5 {[%emt 0:00:03]} Kf8 {[%emt 0:00:03]} 26. Bxe6 {[%emt 0:00:09]} fxe6 {[%emt 0:00:03]} 27. Rxe6 {[%emt 0:00:25]} Ne4 {[%emt 0:02:54]} 28. Rxe7 {[%emt 0:00:41]} Rxe7 {[%emt 0:00:07]} 29. f3 {[%emt 0:00:11]} Nd6 {[%emt 0:00:21]} 30. Rxe7 {[%emt 0:00:03]} Kxe7 {[%emt 0:00:02]} 31. Kf2 {[%emt 0:00:07]} Kf6 {[%emt 0:00:33]} 32. b3 {[%emt 0:00:04]} Ke5 {[%emt 0:00:17]} 33. Ke3 {[%emt 0:00:03]} g5 {[%emt 0:00:08]} 34. g3 {[%emt 0:00:07]} Ne8 {[%emt 0:01:19]} 35. f4+ {[%emt 0:00:25]} gxf4+ {[%emt 0:00:02]} 36. gxf4+ {[%emt 0:00:02]} Kf6 {[%emt 0:00:06]} 37. Nf3 {[%emt 0:00:24]} Ke6 {[%emt 0:00:54]} 38. Nh4 {[%emt 0:00:16]} Ng7 {[%emt 0:00:07]} 39. Kd4 {[%emt 0:00:07]} Nh5 {[%emt 0:01:14]} 40. f5+ {[%emt 0:00:47]} Kd6 {[%emt 0:02:46]} 41. f6 {[%emt 0:01:54]} Nxf6 {[%emt 0:00:32]} 42. Nf5+ {[%emt 0:00:01]} Ke6 {[%emt 0:00:15]} 43. Nxh6 {[%emt 0:00:02]} Nh5 {[%emt 0:00:40]} 44. Ng4 {[%emt 0:00:09]} Nf4 {[%emt 0:00:16]} 45. h4 {[%emt 0:00:30]} b6 {[%emt 0:00:07]} 46. a4 {[%emt 0:00:13]} Ne2+ {[%emt 0:00:06]} 47. Ke3 {[%emt 0:00:03]} Ng3 {[%emt 0:00:03]} 48. Kd3 {[%emt 0:00:57]} Kf5 {[%emt 0:00:54]} 49. Ne3+ {[%emt 0:00:05]} Ke5 {[%emt 0:00:00]} 50. Ng2 {[%emt 0:04:46]} Nf5 {[%emt 0:00:03]} 51. h5 {[%emt 0:00:02]} Kd6 {[%emt 0:00:14]} 52. Ne3 {[%emt 0:00:06]} Ng7 {[%emt 0:00:11]} 53. h6 {[%emt 0:00:02]} 1-0

[Event "Asian Amateur Rapid 2024"]
[Site "Al Ain"]
[Date "2024.12.15"]
[Round "3.10"]
[White "Ghaith Saeed Alnuaimi"]
[Black "Medetuly, Nurdaulet"]
[Result "1-0"]
[ECO "E01"]
[WhiteElo "1870"]
[BlackElo "1618"]
[Annotator "NA RC"]
[PlyCount "87"]
[EventDate "2024.12.15"]
[EventType "swiss"]
[EventCountry "UAE"]
[SourceTitle "playchess.com"]
[Source "ChessBase"]
[SourceQuality "1"]
[TimeControl "900+10"]

1. Nf3 {[%emt 0:00:06]} d5 {[%emt 0:00:12]} 2. b3 {[%emt 0:00:02]} c6 {[%emt 0:00:21]} 3. Bb2 {[%emt 0:00:04]} Nf6 {[%emt 0:00:19]} 4. g3 {[%emt 0:00:15]} e6 {[%emt 0:00:17]} 5. Bg2 {[%emt 0:00:03]} Bd6 {[%emt 0:00:13]} 6. O-O {[%emt 0:00:06]} O-O {[%emt 0:00:07]} 7. c4 {[%emt 0:00:03]} Qe7 {[%emt 0:01:11]} 8. d4 {[%emt 0:00:06]} Nbd7 {[%emt 0:01:05]} 9. Nc3 {[%emt 0:00:09]} b6 {[%emt 0:00:18]} 10. Qc2 {[%emt 0:00:14]} Bb7 {[%emt 0:00:18]} 11. Rad1 {[%emt 0:01:01]} Rac8 {[%emt 0:00:21]} 12. e4 {[%emt 0:00:02]} dxe4 {[%emt 0:00:54]} 13. Nxe4 {[%emt 0:00:47]} Nxe4 {[%emt 0:00:36]} 14. Qxe4 {[%emt 0:00:02]} Nf6 {[%emt 0:00:01]} 15. Qh4 {[%emt 0:00:01]} Nd7 {[%emt 0:01:26]} 16. Qxe7 {[%emt 0:01:34]} Bxe7 {[%emt 0:00:02]} 17. Rfe1 {[%emt 0:00:05]} Rfd8 {[%emt 0:01:15]} 18. Re2 {[%emt 0:00:55]} h6 {[%emt 0:00:58]} 19. a3 {[%emt 0:00:23]} a5 {[%emt 0:01:21]} 20. Red2 {[%emt 0:01:07]} f6 {[%emt 0:02:00]} 21. Re1 {[%emt 0:00:26]} Kf7 {[%emt 0:00:33]} 22. Rde2 {[%emt 0:00:02]} Nf8 {[%emt 0:00:14]} 23. Bh3 {[%emt 0:00:31]} c5 {[%emt 0:03:41]} 24. d5 {[%emt 0:00:05]} e5 {[%emt 0:00:31]} 25. Bxc8 {[%emt 0:02:43]} Bxc8 {[%emt 0:00:27]} 26. Nd2 {[%emt 0:00:01]} Bd6 {[%emt 0:00:16]} 27. Ne4 {[%emt 0:00:08]} Bg4 {[%emt 0:00:28]} 28. Re3 {[%emt 0:00:02]} Bh3 {[%emt 0:00:11]} 29. f4 {[%emt 0:01:37]} Bc8 {[%emt 0:00:13]} 30. fxe5 {[%emt 0:00:05]} Bxe5 {[%emt 0:00:02]} 31. Bxe5 {[%emt 0:00:05]} fxe5 {[%emt 0:00:02]} 32. h4 {[%emt 0:00:43]} Bg4 {[%emt 0:00:18]} 33. Nf2 {[%emt 0:00:09]} Bc8 {[%emt 0:00:15]} 34. h5 {[%emt 0:00:19]} g6 {[%emt 0:00:11]} 35. Rxe5 {[%emt 0:00:03]} gxh5 {[%emt 0:00:11]} 36. Re7+ {[%emt 0:00:51]} Kg6 {[%emt 0:00:10]} 37. Re8 {[%emt 0:00:03]} Rd7 {[%emt 0:00:11]} 38. Rxc8 {[%emt 0:00:12]} Nh7 {[%emt 0:00:01]} 39. Rc6+ {[%emt 0:00:10]} Kf5 {[%emt 0:00:16]} 40. Rce6 {[%emt 0:00:21]} Nf6 {[%emt 0:00:13]} 41. R1e5+ {[%emt 0:00:07]} Kg6 {[%emt 0:00:01]} 42. Ne4 {[%emt 0:00:01]} Rf7 {[%emt 0:00:12]} 43. d6 {[%emt 0:00:19]} Kg7 {[%emt 0:00:07]} 44. Rxf6 {[%emt 0:00:02]} 1-0

[Event "Asian Amateur Rapid 2024"]
[Site "Al Ain"]
[Date "2024.12.15"]
[Round "3.11"]
[White "Daneshpour, S.A."]
[Black "Ahsan Feroz"]
[Result "1/2-1/2"]
[ECO "B07"]
[WhiteElo "1899"]
[BlackElo "1795"]
[Annotator "NA RC"]
[PlyCount "180"]
[EventDate "2024.12.15"]
[EventType "swiss"]
[EventCountry "UAE"]
[SourceTitle "playchess.com"]
[Source "ChessBase"]
[SourceQuality "1"]
[TimeControl "900+10"]

1. d4 {[%emt 0:00:31]} Nf6 {[%emt 0:00:01]} 2. Nc3 {[%emt 0:00:03]} g6 {[%emt 0:00:06]} 3. e4 {[%emt 0:00:01]} d6 {[%emt 0:00:01]} 4. Nge2 {[%emt 0:00:08]} Bg7 {[%emt 0:00:02]} 5. g3 {[%emt 0:00:01]} O-O {[%emt 0:00:51]} 6. Bg2 {[%emt 0:00:01]} Na6 {[%emt 0:00:18]} 7. h3 {[%emt 0:00:04]} e5 {[%emt 0:00:01]} 8. Be3 {[%emt 0:00:05]} exd4 {[%emt 0:00:07]} 9. Bxd4 {[%emt 0:00:01]} Re8 {[%emt 0:00:10]} 10. O-O {[%emt 0:00:03]} Nc5 {[%emt 0:01:43]} 11. e5 {[%emt 0:00:05]} Nfd7 {[%emt 0:13:40]} 12. exd6 {[%emt 0:00:03]} cxd6 {[%emt 0:00:00]} 13. Bxg7 {[%emt 0:00:03]} Kxg7 {[%emt 0:00:00]} 14. Qxd6 {[%emt 0:00:13]} Qf6 {[%emt 0:00:00]} 15. Qxf6+ {[%emt 0:00:07]} Nxf6 {[%emt 0:00:00]} 16. Rad1 {[%emt 0:00:06]} Bf5 {[%emt 0:00:00]} 17. Nd4 {[%emt 0:00:03]} Be4 {[%emt 0:00:00]} 18. Nxe4 {[%emt 0:00:04]} Ncxe4 {[%emt 0:00:00]} 19. Rfe1 {[%emt 0:00:16]} Rad8 {[%emt 0:00:00]} 20. Bxe4 {[%emt 0:00:22]} Nxe4 {[%emt 0:00:00]} 21. Rxe4 {[%emt 0:00:53]} Rxe4 {[%emt 0:00:00]} 22. Nf5+ {[%emt 0:00:02]} gxf5 {[%emt 0:00:00]} 23. Rxd8 {[%emt 0:00:02]} Re1+ {[%emt 0:00:00]} 24. Kg2 {[%emt 0:00:02]} Rb1 {[%emt 0:00:00]} 25. b3 {[%emt 0:01:35]} Rb2 {[%emt 0:00:00]} 26. a4 {[%emt 0:01:48]} Rxc2 {[%emt 0:00:00]} 27. Rd7 {[%emt 0:00:01]} b6 {[%emt 0:00:00]} 28. Rxa7 {[%emt 0:00:02]} Rb2 {[%emt 0:00:00]} 29. Rb7 {[%emt 0:00:23]} Rxb3 {[%emt 0:00:00]} 30. a5 {[%emt 0:00:03]} b5 {[%emt 0:00:00]} 31. a6 {[%emt 0:01:14]} b4 {[%emt 0:00:00]} 32. a7 {[%emt 0:01:03]} Ra3 {[%emt 0:00:00]} 33. h4 {[%emt 0:00:08]} b3 {[%emt 0:00:00]} 34. Rxb3 {[%emt 0:01:17]} Rxa7 {[%emt 0:00:00]} 35. Kf3 {[%emt 0:00:04]} Ra4 {[%emt 0:00:00]} 36. Rb6 {[%emt 0:00:10]} h5 {[%emt 0:00:00]} 37. Rc6 {[%emt 0:00:03]} Rb4 {[%emt 0:00:00]} 38. Ke3 {[%emt 0:00:06]} Re4+ {[%emt 0:00:00]} 39. Kf3 {[%emt 0:00:08]} Rb4 {[%emt 0:00:00]} 40. Rd6 {[%emt 0:00:03]} Ra4 {[%emt 0:00:00]} 41. Ke3 {[%emt 0:00:07]} Re4+ {[%emt 0:00:00]} 42. Kd3 {[%emt 0:00:08]} Ra4 {[%emt 0:00:00]} 43. Rd4 {[%emt 0:00:04]} Ra3+ {[%emt 0:00:00]} 44. Ke2 {[%emt 0:00:17]} Kf6 {[%emt 0:00:00]} 45. Rd6+ {[%emt 0:00:04]} Kg7 {[%emt 0:00:00]} 46. Rd3 {[%emt 0:00:01]} Ra4 {[%emt 0:00:00]} 47. f3 {[%emt 0:00:10]} Kg6 {[%emt 0:00:25]} 48. Rd6+ {[%emt 0:00:02]} f6 {[%emt 0:00:16]} 49. Ke3 {[%emt 0:00:08]} Ra3+ {[%emt 0:00:11]} 50. Rd3 {[%emt 0:00:05]} Ra4 {[%emt 0:00:57]} 51. Rd4 {[%emt 0:00:31]} Ra5 {[%emt 0:00:10]} 52. Rb4 {[%emt 0:00:10]} Rc5 {[%emt 0:00:09]} 53. Ra4 {[%emt 0:00:41]} Rb5 {[%emt 0:00:03]} 54. Rd4 {[%emt 0:00:05]} Ra5 {[%emt 0:00:06]} 55. Rb4 {[%emt 0:01:57]} Re5+ {[%emt 0:00:24]} 56. Kd3 {[%emt 0:00:07]} Ra5 {[%emt 0:00:03]} 57. Rb3 {[%emt 0:00:30]} Ra4 {[%emt 0:00:11]} 58. Ke3 {[%emt 0:00:04]} Rc4 {[%emt 0:00:26]} 59. Rd3 {[%emt 0:00:55]} Ra4 {[%emt 0:00:03]} 60. Rd2 {[%emt 0:00:13]} Ra3+ {[%emt 0:00:12]} 61. Kf2 {[%emt 0:00:04]} Rb3 {[%emt 0:00:15]} 62. Kg2 {[%emt 0:00:15]} Ra3 {[%emt 0:00:04]} 63. Rd8 {[%emt 0:00:08]} Ra2+ {[%emt 0:00:07]} 64. Kh3 {[%emt 0:00:04]} Ra3 {[%emt 0:00:03]} 65. Kg2 {[%emt 0:00:14]} Ra2+ {[%emt 0:00:01]} 66. Kf1 {[%emt 0:00:13]} Rb2 {[%emt 0:00:19]} 67. Rg8+ {[%emt 0:00:02]} Kf7 {[%emt 0:00:07]} 68. Rh8 {[%emt 0:00:02]} Kg6 {[%emt 0:00:01]} 69. Re8 {[%emt 0:00:03]} Ra2 {[%emt 0:00:19]} 70. Re2 {[%emt 0:00:03]} Ra3 {[%emt 0:00:05]} 71. Kg2 {[%emt 0:00:09]} Rb3 {[%emt 0:00:02]} 72. Ra2 {[%emt 0:00:10]} Rc3 {[%emt 0:00:04]} 73. Ra4 {[%emt 0:00:24]} Rc2+ {[%emt 0:00:02]} 74. Kh3 {[%emt 0:00:02]} Rc3 {[%emt 0:00:01]} 75. f4 {[%emt 0:00:51]} Rc2 {[%emt 0:00:08]} 76. Ra8 {[%emt 0:00:05]} Rd2 {[%emt 0:00:09]} 77. Rg8+ {[%emt 0:00:03]} Kf7 {[%emt 0:00:03]} 78. Ra8 {[%emt 0:00:04]} Rc2 {[%emt 0:00:05]} 79. Ra7+ {[%emt 0:00:07]} Kg6 {[%emt 0:00:01]} 80. Ra1 {[%emt 0:00:02]} Kf7 {[%emt 0:00:16]} 81. Re1 {[%emt 0:00:05]} Rb2 {[%emt 0:00:02]} 82. Rg1 {[%emt 0:00:04]} Rc2 {[%emt 0:00:05]} 83. Rg2 {[%emt 0:00:35]} Rxg2 {[%emt 0:00:27]} 84. Kxg2 {[%emt 0:00:02]} Ke7 {[%emt 0:05:48]} 85. Kf2 {[%emt 0:00:41]} Kd6 {[%emt 0:00:00]} 86. Ke2 {[%emt 0:00:41]} Kd5 {[%emt 0:00:00]} 87. Kd3 {[%emt 0:00:07]} Kc5 {[%emt 0:00:00]} 88. Kc3 {[%emt 0:00:13]} Kd5 {[%emt 0:00:00]} 89. Kd3 {[%emt 0:00:24]} Kc5 {[%emt 0:00:00]} 90. Kc3 {[%emt 0:05:34]} Kd5 {[%emt 0:00:18]} 1/2-1/2

[Event "Asian Amateur Rapid 2024"]
[Site "Al Ain"]
[Date "2024.12.15"]
[Round "3.12"]
[White "Olimjonov, Muhammadziyo"]
[Black "Mohamed Saeed Laily"]
[Result "0-1"]
[ECO "E06"]
[WhiteElo "1505"]
[BlackElo "1984"]
[Annotator "RC"]
[PlyCount "104"]
[EventDate "2024.12.15"]
[EventType "swiss"]
[EventCountry "UAE"]
[SourceTitle "playchess.com"]
[Source "ChessBase"]
[SourceQuality "1"]
[TimeControl "900+10"]

1. c4 {[%emt 0:00:02]} e6 {[%emt 0:00:01]} 2. g3 {[%emt 0:00:02]} d5 {[%emt 0:00:02]} 3. cxd5 {[%emt 0:00:02]} exd5 {[%emt 0:00:01]} 4. d4 {[%emt 0:00:01]} c6 {[%emt 0:00:21]} 5. Nc3 {[%emt 0:00:03]} Nf6 {[%emt 0:00:03]} 6. Bg2 {[%emt 0:00:02]} Be7 {[%emt 0:00:01]} 7. Nf3 {[%emt 0:00:04]} Bf5 {[%emt 0:00:01]} 8. Bf4 {[%emt 0:00:02]} O-O {[%emt 0:00:04]} 9. O-O {[%emt 0:00:05]} Nbd7 {[%emt 0:02:04]} 10. Re1 {[%emt 0:00:05]} Ne4 {[%emt 0:00:13]} 11. Nxe4 {[%emt 0:00:30]} Bxe4 {[%emt 0:00:03]} 12. Nd2 {[%emt 0:00:32]} Bxg2 {[%emt 0:00:12]} 13. Kxg2 {[%emt 0:00:04]} Re8 {[%emt 0:00:41]} 14. e4 {[%emt 0:00:13]} dxe4 {[%emt 0:00:08]} 15. Nxe4 {[%emt 0:00:05]} Nb6 {[%emt 0:01:24]} 16. Nc5 {[%emt 0:00:33]} Nd5 {[%emt 0:04:51]} 17. Be3 {[%emt 0:01:06]} Qb6 {[%emt 0:01:28]} 18. Qb3 {[%emt 0:02:29]} Bxc5 {[%emt 0:00:32]} 19. dxc5 {[%emt 0:00:09]} Qxb3 {[%emt 0:01:23]} 20. axb3 {[%emt 0:00:04]} a6 {[%emt 0:00:15]} 21. Bd2 {[%emt 0:00:35]} f6 {[%emt 0:00:39]} 22. Rxe8+ {[%emt 0:00:13]} Rxe8 {[%emt 0:00:01]} 23. Re1 {[%emt 0:00:02]} Rd8 {[%emt 0:00:40]} 24. Ba5 {[%emt 0:00:11]} Rc8 {[%emt 0:01:09]} 25. f4 {[%emt 0:00:27]} Kf7 {[%emt 0:00:41]} 26. Kf3 {[%emt 0:00:03]} h5 {[%emt 0:00:12]} 27. h3 {[%emt 0:00:07]} Ne7 {[%emt 0:00:30]} 28. Rd1 {[%emt 0:00:41]} Nd5 {[%emt 0:00:02]} 29. Re1 {[%emt 0:00:02]} f5 {[%emt 0:00:39]} 30. Re5 {[%emt 0:00:13]} g6 {[%emt 0:00:03]} 31. Ke2 {[%emt 0:01:35]} Nf6 {[%emt 0:00:21]} 32. Kf3 {[%emt 0:01:30]} Ne4 {[%emt 0:01:01]} 33. g4 {[%emt 0:00:11]} Re8 {[%emt 0:00:21]} 34. Rxe8 {[%emt 0:01:14]} Kxe8 {[%emt 0:00:02]} 35. b4 {[%emt 0:00:45]} Kd7 {[%emt 0:00:01]} 36. g5 {[%emt 0:00:05]} Ke6 {[%emt 0:00:16]} 37. Ke3 {[%emt 0:00:18]} Kd5 {[%emt 0:00:02]} 38. b3 {[%emt 0:00:02]} Nc3 {[%emt 0:00:31]} 39. Bc7 {[%emt 0:00:24]} Na2 {[%emt 0:00:41]} 40. Ba5 {[%emt 0:00:16]} Nc1 {[%emt 0:00:00]} 41. Bc7 {[%emt 0:00:20]} Nxb3 {[%emt 0:00:00]} 42. Kd3 {[%emt 0:00:01]} Nc1+ {[%emt 0:00:00]} 43. Kc2 {[%emt 0:00:18]} Ne2 {[%emt 0:00:00]} 44. Kd3 {[%emt 0:00:04]} Nd4 {[%emt 0:00:28]} 45. Be5 {[%emt 0:00:22]} Ne6 {[%emt 0:00:11]} 46. Bd6 {[%emt 0:00:07]} a5 {[%emt 0:00:11]} 47. Kc3 {[%emt 0:00:11]} axb4+ {[%emt 0:00:05]} 48. Kxb4 {[%emt 0:00:02]} b6 {[%emt 0:00:14]} 49. Be5 {[%emt 0:00:13]} Nxc5 {[%emt 0:00:07]} 50. Kc3 {[%emt 0:00:02]} Ne4+ {[%emt 0:00:02]} 51. Kd3 {[%emt 0:00:02]} Nxg5 {[%emt 0:00:04]} 52. fxg5 {[%emt 0:00:02]} Kxe5 {[%emt 0:00:00]} 0-1

[Event "Asian Amateur Rapid 2024"]
[Site "Al Ain"]
[Date "2024.12.15"]
[Round "3.13"]
[White "Lovakov, Egor Vlad"]
[Black "Godhani Maharth"]
[Result "1-0"]
[ECO "D36"]
[WhiteElo "1763"]
[BlackElo "1798"]
[Annotator "NA RC"]
[PlyCount "55"]
[EventDate "2024.12.15"]
[EventType "swiss"]
[EventCountry "UAE"]
[SourceTitle "playchess.com"]
[Source "ChessBase"]
[SourceQuality "1"]
[TimeControl "900+10"]

1. d4 {[%emt 0:00:31]} d5 {[%emt 0:00:02]} 2. c4 {[%emt 0:00:02]} e6 {[%emt 0:00:02]} 3. Nc3 {[%emt 0:00:01]} Nf6 {[%emt 0:00:01]} 4. cxd5 {[%emt 0:00:02]} exd5 {[%emt 0:00:02]} 5. Bg5 {[%emt 0:00:01]} Nbd7 {[%emt 0:00:02]} 6. e3 {[%emt 0:00:01]} c6 {[%emt 0:00:01]} 7. Bd3 {[%emt 0:00:02]} Be7 {[%emt 0:00:02]} 8. Nf3 {[%emt 0:00:02]} O-O {[%emt 0:00:02]} 9. Qc2 {[%emt 0:00:01]} Re8 {[%emt 0:00:02]} 10. O-O {[%emt 0:00:10]} Nf8 {[%emt 0:00:01]} 11. h3 {[%emt 0:00:05]} Ng6 {[%emt 0:00:27]} 12. Ne5 {[%emt 0:00:02]} Nd7 {[%emt 0:01:59]} 13. Bxe7 {[%emt 0:01:31]} Qxe7 {[%emt 0:00:02]} 14. Nxg6 {[%emt 0:01:42]} hxg6 {[%emt 0:00:02]} 15. Rae1 {[%emt 0:00:02]} Nf6 {[%emt 0:00:22]} 16. f3 {[%emt 0:00:32]} Qd6 {[%emt 0:00:18]} 17. Qf2 {[%emt 0:00:09]} Be6 {[%emt 0:00:50]} 18. e4 {[%emt 0:00:31]} dxe4 {[%emt 0:01:19]} 19. fxe4 {[%emt 0:00:03]} Qd7 {[%emt 0:00:57]} 20. d5 {[%emt 0:01:00]} Bxh3 {[%emt 0:02:59]} 21. gxh3 {[%emt 0:00:08]} Qxh3 {[%emt 0:00:03]} 22. Re3 {[%emt 0:02:29]} Qd7 {[%emt 0:00:05]} 23. dxc6 {[%emt 0:01:01]} bxc6 {[%emt 0:00:07]} 24. Bc4 {[%emt 0:00:16]} Re7 {[%emt 0:00:49]} 25. Rg3 {[%emt 0:01:57]} Ng4 {[%emt 0:01:41]} 26. Bxf7+ {[%emt 0:00:46]} Kh8 {[%emt 0:01:18]} 27. Rh3+ {[%emt 0:00:53]} Nh6 {[%emt 0:00:02]} 28. Rxh6+ {[%emt 0:00:05]} 1-0

[Event "Asian Amateur Rapid 2024"]
[Site "Al Ain"]
[Date "2024.12.15"]
[Round "3.14"]
[White "Kim, Taewoo A"]
[Black "Sendi, David V"]
[Result "0-1"]
[ECO "D43"]
[WhiteElo "1863"]
[BlackElo "1747"]
[Annotator "NA RC"]
[PlyCount "30"]
[EventDate "2024.12.15"]
[EventType "swiss"]
[EventCountry "UAE"]
[SourceTitle "playchess.com"]
[Source "ChessBase"]
[SourceQuality "1"]
[TimeControl "900+10"]

1. d4 {[%emt 0:00:16]} d5 {[%emt 0:00:01]} 2. c4 {[%emt 0:00:01]} dxc4 {[%emt 0:00:02]} 3. Nf3 {[%emt 0:00:01]} Nf6 {[%emt 0:00:01]} 4. Qa4+ {[%emt 0:00:02]} Nbd7 {[%emt 0:01:09]} 5. Nc3 {[%emt 0:00:11]} e6 {[%emt 0:01:13]} 6. e4 {[%emt 0:00:02]} c6 {[%emt 0:02:27]} 7. Qxc4 {[%emt 0:00:08]} Be7 {[%emt 0:00:18]} 8. Bd3 {[%emt 0:00:52]} O-O {[%emt 0:00:41]} 9. O-O {[%emt 0:00:03]} c5 {[%emt 0:01:00]} 10. e5 {[%emt 0:03:45]} Nb6 {[%emt 0:00:40]} 11. Qb3 {[%emt 0:00:23]} Nfd5 {[%emt 0:00:14]} 12. dxc5 {[%emt 0:00:57]} Bxc5 {[%emt 0:00:14]} 13. Ne4 {[%emt 0:00:06]} Be7 {[%emt 0:00:35]} 14. Bd2 {[%emt 0:01:54]} Bd7 {[%emt 0:00:20]} 15. Rac1 {[%emt 0:00:37]} Ba4 {[%emt 0:00:24]} 0-1